Cogmind - Beta 13 *** ADVENTURER MODE // 2024.04.10 @ 19:32:10 Player: LOOTFASTEATASS Result: Destroyed by S-27 Virus with Autogun Performance ------------- Evolutions (3) 1500 Regions Visited (6) 1200 Robots Destroyed (33) 165 Value Destroyed (972) 972 Prototype IDs (0) 0 Alien Tech Used (0) 0 Bonus (0) 0 TOTAL SCORE: 3837 Bonus ------- None Cogmind --------- Core Integrity 0/700 Matter 300/300 Energy 100/100 System Corruption 4% Temperature Cool (0) Movement Core (750) Ox14 Location -7/Factory Parts ------- > --- POWER (2) -------- (None) > --- PROPULSION (2) --- (None) > --- UTILITY (6) ------ Small Storage Unit High-capacity Storage Unit > --- WEAPON (3) ------- (None) > --- INVENTORY (20) --- Compact Wheel Particle Gun Peak State ------------ > --- POWER ------------ Micro Nuclear Core > --- PROPULSION ------- Advanced Treads Gravmag System > --- UTILITY ---------- Small Storage Unit High-capacity Storage Unit Matter Filter Quantum Capacitor Improved Shield Generator > --- WEAPON ----------- Particle Gun Particle Gun Particle Cannon > --- INVENTORY -------- Compact Wheel Particle Gun [Rating: 41] Favorites ----------- Power Light Ion Engine Engine Light Ion Engine Power Core Light Nuclear Core Propulsion Medium Treads Treads Medium Treads Wheel Wheel Hover Unit Gravmag System Utility High-capacity Storage Unit Device Weight Redist. System Storage High-capacity Storage Unit Processor Targeting Computer Protection Heavy Armor Plating Weapon Flak Gun Energy Gun EM Pulse Gun Energy Cannon Particle Cannon Ballistic Gun Flak Gun Ballistic Cannon Light Cannon Special Weapon Mining Laser Build | -11 -10 -9 -8 -7 -7 -7 ------- Run | Yrd Mat Mat Mat Fac Was Fac Slots Evolved 6 | . . 2 2 2 . . Power 1 | . . 1 . . . . Propulsion . | . . . . . . . Utility 4 | . . 1 1 2 . . Weapon 1 | . . . 1 . . . Parts Attached 56 | 7 5 8 8 4 13 11 Power 12 | 1 1 3 1 . 5 1 Engine 5 | 1 . 3 1 . . . Core 7 | . 1 . . . 5 1 Reactor . | . . . . . . . Propulsion 11 | 2 . 3 2 . 2 2 Treads 8 | . . 3 2 . 2 1 Leg . | . . . . . . . Wheel 2 | 2 . . . . . . Hover 1 | . . . . . . 1 Flight . | . . . . . . . Utility 19 | . 3 1 2 4 4 5 Device 8 | . 1 . 1 1 2 3 Storage 5 | . 2 1 . . . 2 Processor 3 | . . . 1 1 1 . Hackware . | . . . . . . . Protection 3 | . . . . 2 1 . Artifact . | . . . . . . . Weapon 14 | 4 1 1 3 . 2 3 Energy Gun 3 | 1 . . . . . 2 Energy Cannon 1 | . . . . . . 1 Ballistic Gun 8 | 2 1 1 3 . 1 . Ballistic Cannon 1 | . . . . . 1 . Launcher . | . . . . . . . Special Weapon 1 | 1 . . . . . . Impact Weapon . | . . . . . . . Slashing Weapon . | . . . . . . . Piercing Weapon . | . . . . . . . Special Melee Weapon . | . . . . . . . Unidentified Prototypes . | . . . . . . . Parts Lost 25 | . . 4 . . 10 11 Power 8 | . . 2 . . 4 2 Propulsion 3 | . . . . . 1 2 Utility 8 | . . . . . 4 4 Weapon 6 | . . 2 . . 1 3 Highest Loss Streak 10 | . . 3 . . 10 9 To Critical Strikes . | . . . . . . . Average Slot Usage (%) 79 | . 91 97 97 91 45 44 Engine 9 | . 8 12 18 15 6 . Core 5 | . 5 9 . . 2 6 Treads 12 | . . 19 18 15 7 4 Wheel 3 | . 28 2 . . . . Device 10 | . 7 11 10 7 3 15 Storage 14 | . 12 21 18 15 6 5 Processor 1 | . . . 6 . 2 . Protection 1 | . . . . 14 6 . Energy Gun 2 | . 14 1 . . . 3 Energy Cannon 1 | . . . . . . 6 Ballistic Gun 14 | . 14 18 25 23 8 . Naked Turns 45 | . . . . . 45 . Heaviest Build 82 | 7 49 56 65 82 82 73 Greatest Support 65 | 20 26 46 62 65 65 22 Greatest Overweight (x) 23 | . 2 2 1 1 4 23 Average Overweight (x) 1 | . 1 1 . 1 . 9 Largest Inventory Capacity 20 | 5 20 20 20 20 20 20 Average Capacity 17 | 5 18 20 20 20 9 15 Most Carried 20 | 5 17 20 20 20 16 5 Average Carried 12 | 2 10 18 19 16 6 1 Final Capacity 20 | 5 20 20 20 20 5 20 Final Carried 20 | 5 17 18 20 16 . 2 Class Distribution -------------------- 39% | Mutant 27% | Scavenger-Mutant 23% | Gunner 8% | Tank Dominant Class ---------------- Mutant | -10/Materials Scavenger-Mutant | -9/Materials Gunner | -8/Materials Tank | -7/Factory Mutant | -7/Waste Mutant | -7/Factory Resources | -11 -10 -9 -8 -7 -7 -7 ----------- Run | Yrd Mat Mat Mat Fac Was Fac Matter Collected 1263 | 288 304 261 215 22 58 115 Remotely . | . . . . . . . Salvage Created 1262 | 74 319 483 247 24 . 115 Parts 74 | 3 19 39 8 . . 5 Haulers Intercepted 1 | . 1 . . . . . Recyclers Shooed 1 | . . 1 . . . . Parts Field Recycled . | . . . . . . . Retrieved Matter . | . . . . . . . Parts Self-Destructed . | . . . . . . . Prevented . | . . . . . . . Kills | -11 -10 -9 -8 -7 -7 -7 ------- Run | Yrd Mat Mat Mat Fac Was Fac Combat Hostiles Destroyed 27 | 1 4 14 6 1 . 1 Guns 24 | . 4 14 6 . . . Cannons 1 | . . . . . . 1 AOE 2 | 1 . . . 1 . . Classes Destroyed 8 | 2 4 1 . . . 1 Worker 1 | 1 . . . . . . Hauler 1 | . 1 . . . . . Recycler 2 | . 1 . . . . 1 Watcher 2 | . 1 1 . . . . Swarmer 8 | . 2 6 . . . . Grunt 12 | 1 2 6 3 . . . Sentry 6 | . . 2 3 1 . . Programmer 1 | . . . . . . 1 Best Kill Streak 5 | 1 4 5 3 1 . 1 Combat Bots Only 5 | 1 2 5 3 1 . 1 Max Kills in Single Turn 1 | 1 1 1 1 1 . 1 Gunslinging . | . . . . . . . Exploded 1 | 1 . . . 1 . . Melee . | . . . . . . . Uniques/NPCs Destroyed . | . . . . . . . Combat | -11 -10 -9 -8 -7 -7 -7 -------- Run | Yrd Mat Mat Mat Fac Was Fac Hostile Shots Fired 358 | 4 38 96 27 18 11 164 Missed 90 | 2 13 26 8 5 1 35 Damage Taken 3057 | 17 194 532 242 170 401 1501 Core 894 | 17 54 78 38 8 166 533 Absorbed by Shields 116 | . . . . . . 116 Ignored by Resistances 931 | 5 62 168 67 51 107 471 Core Remaining (%) 84 | 93 71 80 93 . . . Volleys Fired 103 | 12 18 42 9 3 6 13 Largest 3 | 2 2 2 3 3 3 3 Hottest 198 | 100 60 60 84 84 84 198 Shots Fired 192 | 18 36 69 27 9 15 18 Gun 170 | 12 36 69 27 9 13 4 Cannon 16 | . . . . . 2 14 Launcher . | . . . . . . . Special 6 | 6 . . . . . . Kinetic 142 | 6 18 67 27 9 15 . Thermal 24 | 6 . . . . . 18 Explosive . | . . . . . . . Electromagnetic 26 | 6 18 2 . . . . Robot Hit Streak 23 | 10 9 13 14 10 23 17 Robot Miss Streak 3 | 1 2 2 3 3 2 1 Penetration Max . | . . . . . . . Secondary Targets 3 | . 1 1 1 . . . Max Gunslinging Chain 1 | . 1 1 1 . . . Capacitor 1 | . . . . . . 1 Shots Hit Robots 151 | 10 25 55 21 9 15 16 Core Hits 86 | 3 11 23 33 8 5 3 Critical Kills . | . . . . . . . Critical Parts Destroyed 1 | . . 1 . . . . Critical Strikes 1 | . . 1 . . . . Destroy 1 | . . 1 . . . . Melee Attacks . | . . . . . . . Impact . | . . . . . . . Slashing . | . . . . . . . Piercing . | . . . . . . . Sneak Attacks . | . . . . . . . Combat Hostiles . | . . . . . . . Follow-up Attacks . | . . . . . . . Damage Inflicted 2763 | 140 325 716 491 272 434 385 Guns 2251 | 118 325 716 491 129 399 73 Cannons 347 | . . . . . 35 312 Explosions 165 | 22 . . . 143 . . Melee . | . . . . . . . Ramming . | . . . . . . . Kinetic 1964 | 50 159 701 491 129 434 . Thermal 550 | 22 . . . 143 . 385 Explosive . | . . . . . . . Electromagnetic 249 | 68 166 15 . . . . Impact . | . . . . . . . Slashing . | . . . . . . . Piercing . | . . . . . . . Highest Corruption 4 | . . . . . . 4 Average Corruption 1 | . . . . . . 1 Corruption Purged . | . . . . . . . Corruption Blocked . | . . . . . . . Effects 4 | . . . . . . 4 Message Errors 1 | . . . . . . 1 Energy Discharges 2 | . . . . . . 2 Misfires 1 | . . . . . . 1 Overload Shots . | . . . . . . . Overflow Damage 46 | . . . . 25 . 21 Projectiles 21 | . . . . . . 21 Explosions 25 | . . . . 25 . . Melee . | . . . . . . . Knockbacks . | . . . . . . . Impact . | . . . . . . . Kinetic . | . . . . . . . Secondary . | . . . . . . . Self-Inflicted Damage 57 | . . . . 57 . . Shots 1 | . . . . 1 . . Rammed . | . . . . . . . Targets Rammed . | . . . . . . . Kicked . | . . . . . . . Crushed . | . . . . . . . Highest Temperature 258 | 60 87 54 126 168 132 258 Average Temperature 49 | 23 49 26 47 84 80 72 Received Heat Transfer 725 | 12 87 219 144 30 . 233 Siege Activations . | . . . . . . . Robots Corrupted . | . . . . . . . Combat Hostiles . | . . . . . . . Parts Fried 1 | 1 . . . . . . Impact Corruptions . | . . . . . . . Robots Melted . | . . . . . . . Combat Hostiles . | . . . . . . . Parts Melted 1 | . . . . . . 1 Heat Transferred 829 | 50 . . . 150 . 629 Parts Sabotaged . | . . . . . . . Parts Stolen . | . . . . . . . Parts Stripped . | . . . . . . . Power Chain Reactions 1 | 1 . . . . . . Alert | -11 -10 -9 -8 -7 -7 -7 ------- Run | Yrd Mat Mat Mat Fac Was Fac Peak Influence 187 | 25 122 187 182 128 37 35 Initial 67 | . 13 43 67 40 37 12 Average 56 | 12 80 65 91 90 15 14 Maximum Alert Level . | . . . . . . . Low Security (%) 100 | 100 100 100 100 100 100 100 Level 1 . | . . . . . . . Level 2 . | . . . . . . . Level 3 . | . . . . . . . Level 4 . | . . . . . . . Level 5 . | . . . . . . . High Security . | . . . . . . . Max Security . | . . . . . . . Squads Dispatched 2 | . . 1 . . . 1 Investigation . | . . . . . . . Extermination 1 | . . . . . . 1 Reinforcement 1 | . . 1 . . . . Assault . | . . . . . . . Garrison . | . . . . . . . Intercept . | . . . . . . . Searches Triggered . | . . . . . . . Construction Impeded . | . . . . . . . Haulers Reinforced . | . . . . . . . Active Scanning Responses . | . . . . . . . Cargo Convoy Interrupts . | . . . . . . . Stealth | -11 -10 -9 -8 -7 -7 -7 --------- Run | Yrd Mat Mat Mat Fac Was Fac Distress Signals 2 | . . 2 . . . . Communications Jammed . | . . . . . . . Distress Signals . | . . . . . . . Times Spotted 47 | 1 6 21 6 1 5 7 Peak Tracking Total 6 | 1 3 5 3 1 5 6 Tactical Retreats 1 | . . . 1 . . . Traps | -11 -10 -9 -8 -7 -7 -7 ------- Run | Yrd Mat Mat Mat Fac Was Fac Traps Triggered 2 | . . . . 2 . . Indirectly . | . . . . . . . Trap Hack Attempts . | . . . . . . . Triggered . | . . . . . . . Disarmed . | . . . . . . . Reprogrammed . | . . . . . . . Reused . | . . . . . . . Traps Extracted . | . . . . . . . Installed . | . . . . . . . Triggered . | . . . . . . . Machines | -11 -10 -9 -8 -7 -7 -7 ---------- Run | Yrd Mat Mat Mat Fac Was Fac Machines Disabled 3 | . . . . 3 . . Max in Single Turn 3 | . . . . 3 . . Machines Repaired . | . . . . . . . Machines Dismantled . | . . . . . . . Machines Sabotaged . | . . . . . . . Overloaded Fab Kills . | . . . . . . . Hacking | -11 -10 -9 -8 -7 -7 -7 --------- Run | Yrd Mat Mat Mat Fac Was Fac Machines Accessed . | . . . . . . . Terminals . | . . . . . . . Fabricators . | . . . . . . . Repair Stations . | . . . . . . . Recycling Units . | . . . . . . . Scanalyzers . | . . . . . . . Garrison Access . | . . . . . . . Total Hacks . | . . . . . . . Successful . | . . . . . . . Failed . | . . . . . . . Catastrophic . | . . . . . . . Database Lockouts . | . . . . . . . Manual . | . . . . . . . Terminals . | . . . . . . . Fabricators . | . . . . . . . Repair Stations . | . . . . . . . Recycling Units . | . . . . . . . Scanalyzers . | . . . . . . . Garrison Access . | . . . . . . . Terminal Hacks . | . . . . . . . Fabricator Hacks . | . . . . . . . Repair Station Hacks . | . . . . . . . Recycling Unit Hacks . | . . . . . . . Scanalyzer . | . . . . . . . Garrison Access Hacks . | . . . . . . . Unauthorized Hacks . | . . . . . . . Terminals . | . . . . . . . Fabricators . | . . . . . . . Repair Stations . | . . . . . . . Recycling Units . | . . . . . . . Scanalyzers . | . . . . . . . Garrison Access . | . . . . . . . Data Cores Recovered . | . . . . . . . Used . | . . . . . . . Hacking Detections . | . . . . . . . Full Trace Events . | . . . . . . . Feedback Events . | . . . . . . . Feedback Blocked . | . . . . . . . Robot Schematics Acquired . | . . . . . . . Robots Built . | . . . . . . . Authchips . | . . . . . . . Time . | . . . . . . . Total Robot Build Rating . | . . . . . . . Part Schematics Acquired . | . . . . . . . Parts Built . | . . . . . . . Authchips . | . . . . . . . Time . | . . . . . . . Total Part Build Rating . | . . . . . . . Parts Repaired . | . . . . . . . Time . | . . . . . . . Parts Recycled . | . . . . . . . Recycled Matter . | . . . . . . . Retrieved Matter . | . . . . . . . Retrieved Components . | . . . . . . . Parts Scanalyzed . | . . . . . . . Part Schematics Acquired . | . . . . . . . Parts Damaged . | . . . . . . . Bothacking | -11 -10 -9 -8 -7 -7 -7 ------------ Run | Yrd Mat Mat Mat Fac Was Fac Used RIF Installer . | . . . . . . . Robots Hacked . | . . . . . . . Non-combat . | . . . . . . . Combat . | . . . . . . . Robot Hacks Applied . | . . . . . . . Relay Couplers Released . | . . . . . . . Fabnet Peak Effective % . | . . . . . . . Robots Rewired . | . . . . . . . Allies Hacked . | . . . . . . . Hacks Repelled . | . . . . . . . Allies | -11 -10 -9 -8 -7 -7 -7 -------- Run | Yrd Mat Mat Mat Fac Was Fac Total Allies 1 | . . . . . 1 . Largest Group 1 | . . . . . 1 . Highest-Rated Group 31 | . . . . . 31 . Highest-Rated Ally 31 | . . . . . 31 . Total Orders . | . . . . . . . Ally Attacks 9 | . . . . . 9 . Total Damage 164 | . . . . . 164 . Kills . | . . . . . . . Allies Corrupted . | . . . . . . . Allies Melted . | . . . . . . . Intel | -11 -10 -9 -8 -7 -7 -7 ------- Run | Yrd Mat Mat Mat Fac Was Fac Robot Analysis Total . | . . . . . . . Derelict Logs Recovered . | . . . . . . . Drone Launches . | . . . . . . . Drone Recoveries . | . . . . . . . Exploration | -11 -10 -9 -8 -7 -7 -7 ------------- Run | Yrd Mat Mat Mat Fac Was Fac Turns Passed 3603 | 162 306 1076 721 264 179 895 Spaces Moved 1426 | 135 240 372 281 104 142 152 Core 269 | 21 . . . . 110 138 Treads 694 | . . 276 281 104 32 1 Legs . | . . . . . . . Wheels 450 | 114 240 96 . . . . Hover 13 | . . . . . . 13 Flight . | . . . . . . . Fastest Speed 50 | 50 80 110 160 240 50 250 Average Speed 209 | 75 96 206 237 240 100 548 Slowest Speed 1200 | 80 110 240 240 240 250 1200 Overloaded Moves . | . . . . . . . Propulsion Burnouts . | . . . . . . . Robots Hopped . | . . . . . . . Cave-ins Triggered . | . . . . . . . Exploration Rate (%) 23 | 6 29 29 21 4 72 3 Regions Visited 6 Branch Regions . Pre-discovered Areas . | . . . . . . . Known Exits Taken . | . . . . . . . Unknown Exits Taken 4 | 1 1 1 1 . . . Scrap Searched . | . . . . . . . Spaces Dug 6 | 6 . . . . . . Terrain Destroyed 22 | 6 . . . 16 . . Melee . | . . . . . . . Projectile 6 | 6 . . . . . . AOE 16 | . . . . 16 . . Terrain Rammed . | . . . . . . . Walls Destroyed . | . . . . . . . Machines Disabled . | . . . . . . . Actions | -11 -10 -9 -8 -7 -7 -7 --------- Run | Yrd Mat Mat Mat Fac Was Fac Total 1859 | 165 279 616 317 115 165 202 Wait 194 | . . 178 5 . . 11 Move 1421 | 134 239 371 280 104 141 152 Hop . | . . . . . . . Pick Up 62 | 11 15 11 6 1 4 14 Fast Attach 7 | . 1 . 3 . 3 . Attach 36 | 6 2 5 . 3 9 11 Detach 2 | . . . . 2 . . Swap 13 | 1 2 3 5 1 1 . Drop 21 | 1 2 6 9 1 1 1 Fire 103 | 12 18 42 9 3 6 13 Melee . | . . . . . . . Ram . | . . . . . . . Kick . | . . . . . . . Crush . | . . . . . . . Escape Stasis . | . . . . . . . Rewire . | . . . . . . . Trap . | . . . . . . . Miscellaneous . | . . . . . . . Route ------- -11/Scrapyard -10/Materials -9/Materials -8/Materials -7/Factory -7/Waste -7/Factory (discovered 1 exit: [*Fac]) History --------- Turn | Location | Event 2 | -11/Scrapyard | Met Revision 17 74 | -11/Scrapyard | Discovered new exit (range 8) 163 | -11/Scrapyard | Entered Materials 214 | -10/Materials | Discovered new exit (range 13) 325 | -10/Materials | Build established: Mutant 469 | -10/Materials | Entered another Materials area 469 | -9/Materials | Evolved 2 slots: Power x1, Utility x1 899 | -9/Materials | Build established: Scavenger-Mutant 1448 | -9/Materials | Lost 3 parts (2p1w) 1490 | -9/Materials | Discovered new exit (range 16) 1545 | -9/Materials | Entered another Materials area 1545 | -8/Materials | Evolved 2 slots: Utility x1, Weapon x1 1912 | -8/Materials | Build established: Gunner 2196 | -8/Materials | Discovered new exit (range 13) 2266 | -8/Materials | Entered Factory 2266 | -7/Factory | Evolved 2 slots: Utility x2 2530 | -7/Factory | Sucked down chute 2530 | -7/Factory | Entered Waste 2531 | -7/Waste | Met a frightened Derelict 2569 | -7/Waste | Spotted C-40 Crusher 2577 | -7/Waste | Build established: Tank 2581 | -7/Waste | Crushed by Compactor (1 part destroyed, 2 dropped) 2584 | -7/Waste | Crushed by Compactor (0 parts destroyed, 1 dropped) 2600 | -7/Waste | Crushed by Compactor (1 part destroyed, 1 dropped) 2617 | -7/Waste | Spotted C-40 Crusher 2617 | -7/Waste | Crushed by Compactor (1 part destroyed) 2620 | -7/Waste | Crushed by Compactor (1 part destroyed, 1 dropped) 2623 | -7/Waste | Crushed by Compactor (1 part destroyed, 2 dropped) 2626 | -7/Waste | Crushed by Compactor (1 part destroyed, 2 dropped) 2650 | -7/Waste | Crushed by Compactor (1 part destroyed, 2 dropped) 2654 | -7/Waste | Spotted C-40 Crusher 2654 | -7/Waste | Spotted C-40 Crusher 2666 | -7/Waste | Crushed by Compactor (1 part destroyed, 1 dropped) 2678 | -7/Waste | Spotted C-40 Crusher 2686 | -7/Waste | Discovered new exit (range 15) 2695 | -7/Waste | Found Quantum Capacitor 2697 | -7/Waste | Lost 10 parts (4p1n4u1w) 2709 | -7/Waste | Entered Factory 2894 | -7/Factory | Build established: Mutant 2938 | -7/Factory | Discovered new exit (range 4) 3539 | -7/Factory | P-60 Hacker assimilated allied K9-FZY(g) 3584 | -7/Factory | Core integrity fell below 50% 3599 | -7/Factory | Core integrity fell below 20% 3604 | -7/Factory | Destroyed by S-27 Virus with Autogun Last Messages --------------- Gravmag System destroyed. System corrupted: FCS attempts to trigger Particle Cannon. System corrupted: Particle Cannon misfires. Adv. Treads destroyed. M-28 Smith repairs Gravmag System. Quantum Capacitor destroyed. Imp. Shield Generator destroyed. Critical hit (Burn: +37). Particle Cannon destroyed. Mic. Nuclear Core destroyed. Particle Gun destroyed. System corrupted: Energy discharge (-32). P-60 Hacker resets K9-FZY(g), system corruption cleaned. K9-FZY(g) destroyed. K-01 Serf collects debris. M-28 Smith repairs S-27 Virus. T-07 Excavator destroyed. K-01 Serf collects debris. Map ----- +----------------------------------------------------+ | ?### #### #???????????????? | | ???# #??# #???????????????? | | ???# ########+#####???????????????? | | ???# #???????????????????? | | ???# ##### #???????????????????? | | ???# #???# #???????????????????? | | ???# #???# #???????????????????? | | ???# #???# #???????????????????? | | ???# #???# #???????????????????? | | ???# #???# #???????????????????? | | ???# ##+##### #???????????????????? | | ???# # # #???????????????????? | | ???# # # #???????????????????? | | ???# # # #???????????????????? | | ???# # < # #???????????????????? | | ???# # # #???????????????????? | | ???# # # #???????????????????? | | ???# #####+## #???????????????????? | | ???# ##??????????????????? | | ???#### = T#??????????????????? | | ??????# #??????????????????? | | ??#####+## ##??????????????????? | | ??# # #???????????????????? | | ??# # = #???????????????????? | | ??# +=%! #???????????????????? | | ??# = #@[k #???????????????????? | | ??# #=%! #???????????????????? | | ??# # =* #???????????????????? | | ??########spss#???????????????????? | | ?????????#/##m#???????????????????? | | ???????? # #???????????????????? | | ?????? """" # #???????????????????? | | ???? """" # #???????????????????? | | ??"" """"s# ???????????????????? | | ?? """" # ???????????????????? | | ? #? ???????????????????? | | #??""????"" +? ???????????????????? | | ??????????? #? ??????????????????? | | ??????????? #? ??????????????????? | | ??????????? #? ??????????????????? | | ??????????? #??#??????????????????? | | ??????????????????????????????????? | | ??????????????????????????????????? | | ??????????????????????????????????? | | ??????????????????????????????????? | | ??????????????????????????????????? | | ??????????????????????????????????? | | ??????????????????????????????????? | | ??????????????????????????????????? | | ??????????????????????????????????? | +----------------------------------------------------+ Best States ------------- Heat Dissipation 48 Energy Generation 23 Energy Capacity 275 Matter Stores 500 Matter Capacity 500 Sight Range 16 Terrain Scan Density 10 ECM Strength 1 Additional Mass Support 9 Armor Coverage 750 Resistance: KI 20 Resistance: TH 20 Resistance: EX 20 Resistance: EM 35 Resistance: I 20 Resistance: S 20 Resistance: P 20 Evasion (%) 50 Targeting Accuracy 6 Recoil Reduction 2 Matter Filtering 30 Offensive Hacking 10 Item Schematics ----------------- None Robot Schematics ------------------ None Fabricated ------------ Nothing Alien Tech Used ----------------- None Achievements -------------- Made in Tau Ceti IV More Dakka Please Challenges ------------ None Game ------ Seed ProjectionGravityDoomcannon Manual? 0 Play Time 00:34:09 Cumulative 1.4 hours Start 2024.04.09 @ 22:54:03 End 2024.04.10 @ 19:32:10 Sessions 3 Manual Loads 0 Difficulty Adventurer Special Mode None Game No. 2 Rogue 0 Adventurer 2 Explorer 0 Win Type - Total 0 Types 0/0/0/0/0/0/0/0/0 Lore% 0 Gallery% 4 Achievement% 4 Wizard Run 0 Options --------- Layout 1 ASCII 0 Keyboard 0 Movement Mouse Keybinds 0 Fullscreen 1 Font 32/SmallcapsGlow Map View 50x35 Zoom Use 0% Tactical HUD 0 Map Filters NONE Filters NONE Steam 1 RUN: 7acc2bc5-0e15-4aa6-ad33-948d2f964d6f